[Event "Titled Tuesday Blitz April 25 Late 2023"]
[White "Bartel, Mateusz"]
[Black "Jovic, Stanoje"]
[WhiteFideId "1112635"]
[BlackFideId "905020"]
[WhiteElo "2521"]
[BlackElo "2236"]
[Result "0-1"]
[Round "01"]
[TimeControl "180+2"]
[Date "2023.04.25"]
[WhiteClock "0:00:04"]
[BlackClock "0:00:28"]

1. e4 {[%clk 0:03:00]}  c6 {[%clk 0:02:59]} 2. Nc3 {[%clk 0:02:54]}  d5 {[%clk 0:02:59]} 3. Qf3 {[%clk 0:02:55]}  d4 {[%clk 0:02:51]} 4. Nd1 {[%clk 0:02:51]}  e5 {[%clk 0:02:49]} 5. Bc4 {[%clk 0:02:50]}  Nf6 {[%clk 0:02:48]} 6. d3 {[%clk 0:02:49]}  Bg4 {[%clk 0:02:41]} 7. Qg3 {[%clk 0:02:49]}  Bxd1 {[%clk 0:02:39]} 8. Qxe5+ {[%clk 0:02:40]}  Be7 {[%clk 0:02:37]} 9. Kxd1 {[%clk 0:02:40]}  b5 {[%clk 0:02:33]} 10. Bb3 {[%clk 0:02:39]}  a5 {[%clk 0:02:33]} 11. a4 {[%clk 0:02:37]}  Nbd7 {[%clk 0:02:21]} 12. Qg3 {[%clk 0:02:25]}  O-O {[%clk 0:02:18]} 13. Bh6 {[%clk 0:02:00]}  Ne8 {[%clk 0:02:11]} 14. Nf3 {[%clk 0:01:55]}  Nc5 {[%clk 0:02:07]} 15. axb5 {[%clk 0:01:53]}  Nxb3 {[%clk 0:02:01]} 16. cxb3 {[%clk 0:01:54]}  Qb6 {[%clk 0:01:56]} 17. bxc6 {[%clk 0:01:41]}  Qxb3+ {[%clk 0:01:54]} 18. Ke2 {[%clk 0:01:41]}  f5 {[%clk 0:01:42]} 19. exf5 {[%clk 0:01:24]}  Bd6 {[%clk 0:01:32]} 20. Bf4 {[%clk 0:01:03]}  Qxb2+ {[%clk 0:01:28]} 21. Nd2 {[%clk 0:01:02]}  Nf6 {[%clk 0:01:21]} 22. Rhb1 {[%clk 0:00:30]}  Qc2 {[%clk 0:01:10]} 23. Bxd6 {[%clk 0:00:29]}  Rfe8+ {[%clk 0:01:03]} 24. Kf1 {[%clk 0:00:27]}  Qxd2 {[%clk 0:01:03]} 25. Qf3 {[%clk 0:00:26]}  a4 {[%clk 0:00:53]} 26. g4 {[%clk 0:00:24]}  a3 {[%clk 0:00:52]} 27. Rxa3 {[%clk 0:00:19]}  Rxa3 {[%clk 0:00:47]} 28. Bxa3 {[%clk 0:00:20]}  Qa2 {[%clk 0:00:47]} 29. Rb7 {[%clk 0:00:10]}  Qxa3 {[%clk 0:00:46]} 30. g5 {[%clk 0:00:11]}  Qc1+ {[%clk 0:00:45]} 31. Kg2 {[%clk 0:00:11]}  Qxg5+ {[%clk 0:00:46]} 32. Qg3 {[%clk 0:00:11]}  Qh6 {[%clk 0:00:38]} 33. c7 {[%clk 0:00:10]}  Nh5 {[%clk 0:00:34]} 34. Rb8 {[%clk 0:00:10]}  Qc6+ {[%clk 0:00:29]} 35. Kh3 {[%clk 0:00:06]}  Nxg3 {[%clk 0:00:27]} 36. Rxe8+ {[%clk 0:00:04]}  Qxe8 {[%clk 0:00:27]} 37. hxg3 {[%clk 0:00:05]}  Qc8 {[%clk 0:00:27]} 38. g4 {[%clk 0:00:04]}  Qxc7 {[%clk 0:00:28]} 0-1


[Site "https://www.chess.com"]

[Event "Titled Tuesday Blitz April 25 Late 2023"]
[White "Flynn, Jacob"]
[Black "Demchenko, Anton"]
[WhiteFideId "2509393"]
[BlackFideId "4160258"]
[WhiteElo "2053"]
[BlackElo "2545"]
[Result "0-1"]
[Round "01"]
[TimeControl "180+2"]
[Date "2023.04.25"]
[WhiteClock "0:00:10"]
[BlackClock "0:00:04"]

1. d4 {[%clk 0:02:58]}  Nf6 {[%clk 0:02:59]} 2. c4 {[%clk 0:02:58]}  d6 {[%clk 0:03:00]} 3. Nf3 {[%clk 0:02:57]}  Nc6 {[%clk 0:03:00]} 4. Nc3 {[%clk 0:02:57]}  e5 {[%clk 0:02:59]} 5. e4 {[%clk 0:02:53]}  Bg4 {[%clk 0:02:58]} 6. d5 {[%clk 0:02:51]}  Nd4 {[%clk 0:02:59]} 7. Be2 {[%clk 0:02:51]}  Nxe2 {[%clk 0:02:59]} 8. Qxe2 {[%clk 0:02:51]}  Be7 {[%clk 0:03:00]} 9. O-O {[%clk 0:02:47]}  h6 {[%clk 0:02:56]} 10. Be3 {[%clk 0:02:45]}  O-O {[%clk 0:02:50]} 11. Rac1 {[%clk 0:02:44]}  Nh7 {[%clk 0:02:49]} 12. h3 {[%clk 0:02:39]}  Bd7 {[%clk 0:02:49]} 13. Nd2 {[%clk 0:02:35]}  f5 {[%clk 0:02:45]} 14. f3 {[%clk 0:02:35]}  f4 {[%clk 0:02:36]} 15. Bf2 {[%clk 0:02:36]}  g5 {[%clk 0:02:22]} 16. b4 {[%clk 0:02:35]}  h5 {[%clk 0:02:22]} 17. c5 {[%clk 0:02:35]}  Nf6 {[%clk 0:02:08]} 18. c6 {[%clk 0:02:31]}  bxc6 {[%clk 0:02:05]} 19. dxc6 {[%clk 0:02:31]}  Be6 {[%clk 0:02:06]} 20. Rfd1 {[%clk 0:02:15]}  g4 {[%clk 0:02:05]} 21. fxg4 {[%clk 0:01:39]}  hxg4 {[%clk 0:02:06]} 22. hxg4 {[%clk 0:01:38]}  Nxg4 {[%clk 0:01:59]} 23. Nf3 {[%clk 0:01:33]}  Rf7 {[%clk 0:01:52]} 24. Nd5 {[%clk 0:01:30]}  Rh7 {[%clk 0:01:47]} 25. b5 {[%clk 0:01:14]}  Kf7 {[%clk 0:01:40]} 26. Kf1 {[%clk 0:01:08]}  Rh1+ {[%clk 0:01:39]} 27. Bg1 {[%clk 0:01:07]}  Rc8 {[%clk 0:01:21]} 28. Ke1 {[%clk 0:01:05]}  Qh8 {[%clk 0:01:01]} 29. Kd2 {[%clk 0:01:02]}  Bxd5 {[%clk 0:01:00]} 30. exd5 {[%clk 0:01:02]}  Rg8 {[%clk 0:00:46]} 31. Kd3 {[%clk 0:01:00]}  Qh7+ {[%clk 0:00:42]} 32. Qe4 {[%clk 0:00:56]}  Qxe4+ {[%clk 0:00:41]} 33. Kxe4 {[%clk 0:00:56]}  Nf6+ {[%clk 0:00:42]} 34. Kd3 {[%clk 0:00:45]}  e4+ {[%clk 0:00:43]} 35. Kc4 {[%clk 0:00:42]}  exf3 {[%clk 0:00:41]} 36. gxf3 {[%clk 0:00:43]}  Ra8 {[%clk 0:00:23]} 37. a4 {[%clk 0:00:43]}  Rh3 {[%clk 0:00:23]} 38. Rd3 {[%clk 0:00:41]}  Nh7 {[%clk 0:00:14]} 39. a5 {[%clk 0:00:41]}  Ng5 {[%clk 0:00:15]} 40. Rf1 {[%clk 0:00:40]}  Bd8 {[%clk 0:00:12]} 41. Rb3 {[%clk 0:00:31]}  Rg3 {[%clk 0:00:09]} 42. b6 {[%clk 0:00:28]}  axb6 {[%clk 0:00:07]} 43. axb6 {[%clk 0:00:29]}  cxb6 {[%clk 0:00:07]} 44. Bxb6 {[%clk 0:00:29]}  Bxb6 {[%clk 0:00:07]} 45. Rxb6 {[%clk 0:00:29]}  Rc8 {[%clk 0:00:05]} 46. Rb7+ {[%clk 0:00:27]}  Kf6 {[%clk 0:00:05]} 47. Rd7 {[%clk 0:00:26]}  Nf7 {[%clk 0:00:04]} 48. Kb5 {[%clk 0:00:23]}  Rg2 {[%clk 0:00:04]} 49. Rb1 {[%clk 0:00:20]}  Rc2 {[%clk 0:00:04]} 50. Rb3 {[%clk 0:00:20]}  Rc5+ {[%clk 0:00:04]} 51. Kb6 {[%clk 0:00:20]}  Rxd5 {[%clk 0:00:04]} 52. Kb7 {[%clk 0:00:21]}  Re8 {[%clk 0:00:03]} 53. c7 {[%clk 0:00:21]}  Rc5 {[%clk 0:00:03]} 54. Rb4 {[%clk 0:00:17]}  Ke6 {[%clk 0:00:03]} 55. c8=Q {[%clk 0:00:13]}  Rexc8 {[%clk 0:00:02]} 56. Rxf7 {[%clk 0:00:09]}  Kxf7 {[%clk 0:00:03]} 57. Rxf4+ {[%clk 0:00:10]}  Ke6 {[%clk 0:00:04]} 0-1


[Site "https://www.chess.com"]

[Event "Titled Tuesday Blitz April 25 Late 2023"]
[White "Williams, John M"]
[Black "Narayanan, Srinath"]
[WhiteFideId "2046636"]
[BlackFideId "5018420"]
[WhiteElo "2089"]
[BlackElo "2438"]
[Result "0-1"]
[Round "01"]
[TimeControl "180+2"]
[Date "2023.04.25"]
[WhiteClock "0:00:07"]
[BlackClock "0:00:18"]

1. e4 {[%clk 0:02:59]}  c6 {[%clk 0:02:59]} 2. Nf3 {[%clk 0:02:59]}  d5 {[%clk 0:03:00]} 3. Nc3 {[%clk 0:03:00]}  dxe4 {[%clk 0:03:00]} 4. Nxe4 {[%clk 0:03:01]}  Nf6 {[%clk 0:03:00]} 5. Nxf6+ {[%clk 0:03:00]}  exf6 {[%clk 0:03:01]} 6. d4 {[%clk 0:03:00]}  Bd6 {[%clk 0:03:02]} 7. Be3 {[%clk 0:03:00]}  O-O {[%clk 0:03:02]} 8. Bd3 {[%clk 0:03:01]}  Re8 {[%clk 0:03:02]} 9. c3 {[%clk 0:03:01]}  Nd7 {[%clk 0:03:03]} 10. Qc2 {[%clk 0:03:01]}  Nf8 {[%clk 0:03:03]} 11. O-O-O {[%clk 0:03:01]}  Be6 {[%clk 0:03:02]} 12. Kb1 {[%clk 0:03:01]}  Qa5 {[%clk 0:03:01]} 13. c4 {[%clk 0:02:58]}  b5 {[%clk 0:03:01]} 14. Bd2 {[%clk 0:02:36]}  Qa6 {[%clk 0:02:59]} 15. d5 {[%clk 0:02:35]}  cxd5 {[%clk 0:02:58]} 16. cxb5 {[%clk 0:02:36]}  Qb7 {[%clk 0:02:58]} 17. Nd4 {[%clk 0:02:35]}  Bd7 {[%clk 0:02:56]} 18. h4 {[%clk 0:02:26]}  Rec8 {[%clk 0:02:56]} 19. Qb3 {[%clk 0:02:24]}  Ne6 {[%clk 0:02:55]} 20. Nf5 {[%clk 0:02:20]}  Bf8 {[%clk 0:02:55]} 21. Bb4 {[%clk 0:02:11]}  Nc5 {[%clk 0:02:54]} 22. Bxc5 {[%clk 0:02:02]}  Rxc5 {[%clk 0:02:55]} 23. Nd4 {[%clk 0:01:52]}  Rac8 {[%clk 0:02:55]} 24. h5 {[%clk 0:01:36]}  Qc7 {[%clk 0:02:47]} 25. Bf5 {[%clk 0:01:18]}  Bxf5+ {[%clk 0:02:37]} 26. Nxf5 {[%clk 0:01:18]}  Qf4 {[%clk 0:02:38]} 27. Qf3 {[%clk 0:00:32]}  Qc4 {[%clk 0:02:05]} 28. Ne3 {[%clk 0:00:27]}  Qxb5 {[%clk 0:02:02]} 29. Rxd5 {[%clk 0:00:26]}  Rb8 {[%clk 0:01:37]} 30. b3 {[%clk 0:00:19]}  a5 {[%clk 0:01:23]} 31. Rxc5 {[%clk 0:00:19]}  Qxc5 {[%clk 0:01:24]} 32. Qd5 {[%clk 0:00:19]}  Qc3 {[%clk 0:01:22]} 33. Qc4 {[%clk 0:00:18]}  Qd2 {[%clk 0:01:21]} 34. Qc2 {[%clk 0:00:17]}  Qd4 {[%clk 0:01:17]} 35. Qc4 {[%clk 0:00:17]}  Qe5 {[%clk 0:01:18]} 36. Rd1 {[%clk 0:00:09]}  Qxh5 {[%clk 0:01:15]} 37. Rd5 {[%clk 0:00:09]}  Qh1+ {[%clk 0:01:12]} 38. Kc2 {[%clk 0:00:10]}  Qe1 {[%clk 0:01:01]} 39. Qf4 {[%clk 0:00:09]}  Rc8+ {[%clk 0:00:46]} 40. Nc4 {[%clk 0:00:09]}  a4 {[%clk 0:00:43]} 41. Qf5 {[%clk 0:00:09]}  Re8 {[%clk 0:00:39]} 42. Rd7 {[%clk 0:00:09]}  Qa1 {[%clk 0:00:27]} 43. Qd5 {[%clk 0:00:05]}  Qxa2+ {[%clk 0:00:21]} 44. Kc3 {[%clk 0:00:06]}  Qxb3+ {[%clk 0:00:20]} 45. Kd2 {[%clk 0:00:06]}  Bb4+ {[%clk 0:00:19]} 46. Kc1 {[%clk 0:00:07]}  Re1+ {[%clk 0:00:18]} 47. Qd1 {[%clk 0:00:07]} 0-1


[Site "https://www.chess.com"]

[Event "Titled Tuesday Blitz April 25 Late 2023"]
[White "Kravtsiv, Martyn"]
[Black "Gonzalez Zamora, Juan Carlos"]
[WhiteFideId "14113147"]
[BlackFideId "3507548"]
[WhiteElo "2695"]
[BlackElo "2535"]
[Result "1-0"]
[Round "01"]
[TimeControl "180+2"]
[Date "2023.04.25"]
[WhiteClock "0:00:35"]
[BlackClock "0:00:02"]

1. e4 {[%clk 0:02:59]}  d6 {[%clk 0:02:59]} 2. d4 {[%clk 0:02:57]}  Nf6 {[%clk 0:03:00]} 3. Nc3 {[%clk 0:02:56]}  g6 {[%clk 0:03:00]} 4. f4 {[%clk 0:02:56]}  Bg7 {[%clk 0:03:00]} 5. Nf3 {[%clk 0:02:56]}  O-O {[%clk 0:03:01]} 6. Be3 {[%clk 0:02:52]}  a6 {[%clk 0:02:51]} 7. a4 {[%clk 0:02:46]}  Ng4 {[%clk 0:02:39]} 8. Bg1 {[%clk 0:02:45]}  e5 {[%clk 0:02:39]} 9. dxe5 {[%clk 0:02:41]}  dxe5 {[%clk 0:02:38]} 10. Qxd8 {[%clk 0:02:38]}  Rxd8 {[%clk 0:02:39]} 11. Nd5 {[%clk 0:02:38]}  Nc6 {[%clk 0:02:31]} 12. h3 {[%clk 0:02:24]}  Nf6 {[%clk 0:02:30]} 13. O-O-O {[%clk 0:02:14]}  Nxd5 {[%clk 0:02:22]} 14. exd5 {[%clk 0:02:13]}  e4 {[%clk 0:02:01]} 15. Ng5 {[%clk 0:02:05]}  Ne7 {[%clk 0:01:55]} 16. Bc5 {[%clk 0:02:02]}  Nf5 {[%clk 0:01:42]} 17. Nxe4 {[%clk 0:01:58]}  b6 {[%clk 0:01:41]} 18. Bf2 {[%clk 0:01:53]}  Bb7 {[%clk 0:01:37]} 19. Bc4 {[%clk 0:01:53]}  Nd6 {[%clk 0:01:19]} 20. Nxd6 {[%clk 0:01:49]}  Rxd6 {[%clk 0:01:20]} 21. Rhe1 {[%clk 0:01:47]}  Rad8 {[%clk 0:01:19]} 22. Re7 {[%clk 0:01:42]}  R6d7 {[%clk 0:01:18]} 23. Rxd7 {[%clk 0:01:41]}  Rxd7 {[%clk 0:01:19]} 24. c3 {[%clk 0:01:38]}  h5 {[%clk 0:01:14]} 25. g3 {[%clk 0:01:36]}  Bf8 {[%clk 0:01:07]} 26. h4 {[%clk 0:01:34]}  Bd6 {[%clk 0:01:06]} 27. Re1 {[%clk 0:01:32]}  Kf8 {[%clk 0:01:02]} 28. Bb3 {[%clk 0:01:28]}  b5 {[%clk 0:01:01]} 29. axb5 {[%clk 0:01:26]}  axb5 {[%clk 0:01:02]} 30. Kc2 {[%clk 0:01:17]}  Be7 {[%clk 0:01:00]} 31. Rd1 {[%clk 0:01:17]}  Bd6 {[%clk 0:00:59]} 32. c4 {[%clk 0:01:14]}  bxc4 {[%clk 0:00:58]} 33. Bxc4 {[%clk 0:01:15]}  Re7 {[%clk 0:00:56]} 34. Ra1 {[%clk 0:01:09]}  Bc8 {[%clk 0:00:43]} 35. Ra8 {[%clk 0:01:04]}  Re8 {[%clk 0:00:43]} 36. Kc3 {[%clk 0:01:02]}  Bf5 {[%clk 0:00:35]} 37. Rxe8+ {[%clk 0:00:55]}  Kxe8 {[%clk 0:00:36]} 38. b4 {[%clk 0:00:55]}  Kd7 {[%clk 0:00:30]} 39. Bc5 {[%clk 0:00:55]}  f6 {[%clk 0:00:26]} 40. Bd3 {[%clk 0:00:47]}  Bxd3 {[%clk 0:00:04]} 41. Kxd3 {[%clk 0:00:48]}  Ke7 {[%clk 0:00:02]} 42. Kc4 {[%clk 0:00:46]}  Kd7 {[%clk 0:00:02]} 43. Kb5 {[%clk 0:00:35]} 1-0


[Site "https://www.chess.com"]

[Event "Titled Tuesday Blitz April 25 Late 2023"]
[White "Samsonkin, Artiom"]
[Black "Rangel, Daniel"]
[WhiteFideId "13503111"]
[BlackFideId "2124475"]
[WhiteElo "2524"]
[BlackElo "2256"]
[Result "1-0"]
[Round "01"]
[TimeControl "180+2"]
[Date "2023.04.25"]
[WhiteClock "0:00:46"]
[BlackClock "0:00:24"]

1. e4 {[%clk 0:03:00]}  c5 {[%clk 0:02:59]} 2. Nc3 {[%clk 0:02:58]}  g6 {[%clk 0:03:00]} 3. f4 {[%clk 0:02:54]}  Bg7 {[%clk 0:02:59]} 4. Nf3 {[%clk 0:02:55]}  Nc6 {[%clk 0:03:00]} 5. Bb5 {[%clk 0:02:54]}  Nd4 {[%clk 0:02:54]} 6. O-O {[%clk 0:02:52]}  Nxb5 {[%clk 0:02:49]} 7. Nxb5 {[%clk 0:02:53]}  d6 {[%clk 0:02:48]} 8. Nc3 {[%clk 0:02:45]}  Nf6 {[%clk 0:02:41]} 9. d3 {[%clk 0:02:40]}  O-O {[%clk 0:02:36]} 10. Qe1 {[%clk 0:02:41]}  b5 {[%clk 0:02:19]} 11. Nxb5 {[%clk 0:02:22]}  Qb6 {[%clk 0:02:17]} 12. c4 {[%clk 0:02:14]}  Ba6 {[%clk 0:02:05]} 13. Nc3 {[%clk 0:02:13]}  e6 {[%clk 0:02:05]} 14. f5 {[%clk 0:01:56]}  exf5 {[%clk 0:02:01]} 15. exf5 {[%clk 0:01:56]}  d5 {[%clk 0:01:58]} 16. b3 {[%clk 0:01:40]}  Nh5 {[%clk 0:01:59]} 17. Bb2 {[%clk 0:01:37]}  Rae8 {[%clk 0:01:30]} 18. Qf2 {[%clk 0:01:35]}  dxc4 {[%clk 0:01:27]} 19. dxc4 {[%clk 0:01:31]}  Bb7 {[%clk 0:01:27]} 20. Na4 {[%clk 0:01:29]}  Qc6 {[%clk 0:01:14]} 21. Bxg7 {[%clk 0:01:29]}  Nxg7 {[%clk 0:01:08]} 22. f6 {[%clk 0:01:04]}  Qxf6 {[%clk 0:01:06]} 23. Nxc5 {[%clk 0:01:05]}  Bc6 {[%clk 0:01:01]} 24. Nd4 {[%clk 0:01:02]}  Qd6 {[%clk 0:00:52]} 25. Nxc6 {[%clk 0:00:57]}  Qxc6 {[%clk 0:00:53]} 26. Rad1 {[%clk 0:00:57]}  Ne6 {[%clk 0:00:46]} 27. Nd7 {[%clk 0:00:53]}  a5 {[%clk 0:00:44]} 28. Nf6+ {[%clk 0:00:51]}  Kg7 {[%clk 0:00:44]} 29. Nxe8+ {[%clk 0:00:52]}  Qxe8 {[%clk 0:00:44]} 30. Qf6+ {[%clk 0:00:52]}  Kg8 {[%clk 0:00:45]} 31. Rde1 {[%clk 0:00:50]}  a4 {[%clk 0:00:26]} 32. Rxe6 {[%clk 0:00:46]}  fxe6 {[%clk 0:00:19]} 33. Qxf8+ {[%clk 0:00:47]}  Qxf8 {[%clk 0:00:20]} 34. Rxf8+ {[%clk 0:00:47]}  Kxf8 {[%clk 0:00:21]} 35. bxa4 {[%clk 0:00:46]}  Ke7 {[%clk 0:00:21]} 36. a5 {[%clk 0:00:46]}  Kd6 {[%clk 0:00:21]} 37. a6 {[%clk 0:00:46]}  Kc6 {[%clk 0:00:22]} 38. c5 {[%clk 0:00:46]}  g5 {[%clk 0:00:21]} 39. g4 {[%clk 0:00:46]}  h5 {[%clk 0:00:22]} 40. gxh5 {[%clk 0:00:46]}  e5 {[%clk 0:00:23]} 41. Kf2 {[%clk 0:00:46]}  Kxc5 {[%clk 0:00:24]} 42. a7 {[%clk 0:00:46]}  Kb6 {[%clk 0:00:24]} 43. a8=Q {[%clk 0:00:46]} 1-0


[Site "https://www.chess.com"]

[Event "Titled Tuesday Blitz April 25 Late 2023"]
[White "Janik, Igor"]
[Black "Sprenar, Petr"]
[WhiteFideId "1159259"]
[BlackFideId "397164"]
[WhiteElo "2484"]
[BlackElo "2182"]
[Result "1-0"]
[Round "01"]
[TimeControl "180+2"]
[Date "2023.04.25"]
[WhiteClock "0:00:14"]
[BlackClock "0:00:02"]

1. Nf3 {[%clk 0:02:47]}  d5 {[%clk 0:02:55]} 2. b3 {[%clk 0:02:46]}  Nf6 {[%clk 0:02:52]} 3. Bb2 {[%clk 0:02:47]}  e6 {[%clk 0:02:52]} 4. e3 {[%clk 0:02:47]}  Be7 {[%clk 0:02:52]} 5. c4 {[%clk 0:02:48]}  O-O {[%clk 0:02:53]} 6. Be2 {[%clk 0:02:48]}  c5 {[%clk 0:02:52]} 7. Qc2 {[%clk 0:02:47]}  Nc6 {[%clk 0:02:52]} 8. a3 {[%clk 0:02:48]}  d4 {[%clk 0:02:45]} 9. exd4 {[%clk 0:02:42]}  cxd4 {[%clk 0:02:45]} 10. b4 {[%clk 0:02:43]}  e5 {[%clk 0:02:35]} 11. b5 {[%clk 0:02:30]}  e4 {[%clk 0:02:36]} 12. bxc6 {[%clk 0:02:30]}  exf3 {[%clk 0:02:36]} 13. Bxf3 {[%clk 0:02:29]}  bxc6 {[%clk 0:02:25]} 14. O-O {[%clk 0:02:29]}  Rb8 {[%clk 0:02:24]} 15. d3 {[%clk 0:02:21]}  c5 {[%clk 0:02:23]} 16. Nd2 {[%clk 0:02:21]}  Bf5 {[%clk 0:02:22]} 17. Rfb1 {[%clk 0:02:18]}  Qc7 {[%clk 0:02:21]} 18. Bc1 {[%clk 0:02:16]}  Bd6 {[%clk 0:02:17]} 19. Nf1 {[%clk 0:02:16]}  Ng4 {[%clk 0:02:10]} 20. Ng3 {[%clk 0:02:10]}  Bxg3 {[%clk 0:01:56]} 21. hxg3 {[%clk 0:02:10]}  Ne5 {[%clk 0:01:56]} 22. Bf4 {[%clk 0:02:01]}  Nxf3+ {[%clk 0:01:52]} 23. gxf3 {[%clk 0:02:01]}  Rxb1+ {[%clk 0:01:53]} 24. Rxb1 {[%clk 0:02:01]}  Qc6 {[%clk 0:01:53]} 25. Qd1 {[%clk 0:01:57]}  Re8 {[%clk 0:01:49]} 26. g4 {[%clk 0:01:46]}  Bg6 {[%clk 0:01:48]} 27. Rb3 {[%clk 0:01:41]}  h5 {[%clk 0:01:47]} 28. Bg3 {[%clk 0:01:41]}  Qf6 {[%clk 0:01:08]} 29. Rb8 {[%clk 0:01:32]}  Rxb8 {[%clk 0:01:06]} 30. Bxb8 {[%clk 0:01:33]}  Qb6 {[%clk 0:01:04]} 31. Bf4 {[%clk 0:01:32]}  Qb2 {[%clk 0:00:51]} 32. gxh5 {[%clk 0:01:25]}  Bxh5 {[%clk 0:00:50]} 33. Bd6 {[%clk 0:01:14]}  Qxa3 {[%clk 0:00:45]} 34. Qe2 {[%clk 0:01:13]}  Qc1+ {[%clk 0:00:42]} 35. Kh2 {[%clk 0:01:10]}  Qg5 {[%clk 0:00:41]} 36. Qe8+ {[%clk 0:01:07]}  Kh7 {[%clk 0:00:41]} 37. Qe4+ {[%clk 0:01:08]}  Bg6 {[%clk 0:00:42]} 38. Qd5 {[%clk 0:01:05]}  Bf5 {[%clk 0:00:20]} 39. Qxc5 {[%clk 0:00:55]}  Qh5+ {[%clk 0:00:20]} 40. Kg3 {[%clk 0:00:42]}  Qh3+ {[%clk 0:00:19]} 41. Kf4 {[%clk 0:00:42]}  Kg6 {[%clk 0:00:11]} 42. Qxd4 {[%clk 0:00:31]}  Qh6+ {[%clk 0:00:11]} 43. Ke5 {[%clk 0:00:32]}  f6+ {[%clk 0:00:12]} 44. Kd5 {[%clk 0:00:32]}  Qh1 {[%clk 0:00:10]} 45. Qe3 {[%clk 0:00:28]}  a5 {[%clk 0:00:07]} 46. d4 {[%clk 0:00:24]}  Qb1 {[%clk 0:00:06]} 47. Qe8+ {[%clk 0:00:23]}  Kh6 {[%clk 0:00:03]} 48. Qb5 {[%clk 0:00:20]}  Qd3 {[%clk 0:00:02]} 49. Kc5 {[%clk 0:00:17]}  Qxf3 {[%clk 0:00:02]} 50. Qxa5 {[%clk 0:00:16]}  Qxf2 {[%clk 0:00:02]} 51. Qc3 {[%clk 0:00:16]}  g5 {[%clk 0:00:02]} 52. Kb5 {[%clk 0:00:14]} 1-0


[Site "https://www.chess.com"]

[Event "Titled Tuesday Blitz April 25 Late 2023"]
[White "Rottenwohrer Suarez, Juan"]
[Black "Smirnov, Pavel"]
[WhiteFideId "32068182"]
[BlackFideId "4123425"]
[WhiteElo "2174"]
[BlackElo "2519"]
[Result "0-1"]
[Round "01"]
[TimeControl "180+2"]
[Date "2023.04.25"]
[WhiteClock "0:00:04"]
[BlackClock "0:01:35"]

1. c4 {[%clk 0:02:43]}  e6 {[%clk 0:02:58]} 2. d4 {[%clk 0:02:40]}  Nf6 {[%clk 0:02:58]} 3. Nc3 {[%clk 0:02:40]}  Bb4 {[%clk 0:02:57]} 4. Qc2 {[%clk 0:02:41]}  O-O {[%clk 0:02:57]} 5. Nf3 {[%clk 0:02:38]}  d5 {[%clk 0:02:57]} 6. cxd5 {[%clk 0:02:36]}  exd5 {[%clk 0:02:56]} 7. Bg5 {[%clk 0:02:33]}  c5 {[%clk 0:02:57]} 8. dxc5 {[%clk 0:02:31]}  h6 {[%clk 0:02:56]} 9. Bxf6 {[%clk 0:02:26]}  Qxf6 {[%clk 0:02:55]} 10. e3 {[%clk 0:02:13]}  Be6 {[%clk 0:02:29]} 11. Be2 {[%clk 0:02:08]}  Nd7 {[%clk 0:02:28]} 12. O-O {[%clk 0:02:06]}  Bxc3 {[%clk 0:02:22]} 13. bxc3 {[%clk 0:02:00]}  Nxc5 {[%clk 0:02:19]} 14. Nd4 {[%clk 0:02:00]}  Rac8 {[%clk 0:02:19]} 15. Rac1 {[%clk 0:01:34]}  b6 {[%clk 0:02:16]} 16. Rfd1 {[%clk 0:01:33]}  Ne4 {[%clk 0:02:12]} 17. Bf3 {[%clk 0:01:09]}  Nxc3 {[%clk 0:02:06]} 18. Re1 {[%clk 0:01:03]}  Nb5 {[%clk 0:01:57]} 19. Qa4 {[%clk 0:00:49]}  Nxd4 {[%clk 0:01:54]} 20. exd4 {[%clk 0:00:50]}  a5 {[%clk 0:01:41]} 21. h3 {[%clk 0:00:35]}  g6 {[%clk 0:01:39]} 22. Rc6 {[%clk 0:00:22]}  Rxc6 {[%clk 0:01:36]} 23. Qxc6 {[%clk 0:00:22]}  Qxd4 {[%clk 0:01:37]} 24. Rd1 {[%clk 0:00:12]}  Qc4 {[%clk 0:01:37]} 25. Bxd5 {[%clk 0:00:10]}  Qxc6 {[%clk 0:01:36]} 26. Bxc6 {[%clk 0:00:08]}  Bxa2 {[%clk 0:01:37]} 27. Ra1 {[%clk 0:00:04]}  Bc4 {[%clk 0:01:36]} 28. Rb1 {[%clk 0:00:04]}  b5 {[%clk 0:01:35]} 0-1


[Site "https://www.chess.com"]

[Event "Titled Tuesday Blitz April 25 Late 2023"]
[White "Hambleton, Aman"]
[Black "Federzoni, Enzo"]
[WhiteFideId "2606577"]
[BlackFideId "2173301"]
[WhiteElo "2511"]
[BlackElo "2039"]
[Result "1-0"]
[Round "01"]
[TimeControl "180+2"]
[Date "2023.04.25"]
[WhiteClock "0:00:08"]
[BlackClock "0:00:23"]

1. d4 {[%clk 0:03:00]}  Nf6 {[%clk 0:02:59]} 2. c4 {[%clk 0:03:01]}  e6 {[%clk 0:03:00]} 3. Nc3 {[%clk 0:03:01]}  Bb4 {[%clk 0:03:00]} 4. e3 {[%clk 0:03:02]}  c5 {[%clk 0:03:00]} 5. Ne2 {[%clk 0:02:59]}  cxd4 {[%clk 0:02:46]} 6. exd4 {[%clk 0:03:00]}  d5 {[%clk 0:02:45]} 7. a3 {[%clk 0:02:49]}  Be7 {[%clk 0:02:30]} 8. cxd5 {[%clk 0:02:43]}  Nxd5 {[%clk 0:02:30]} 9. Nxd5 {[%clk 0:02:43]}  Qxd5 {[%clk 0:02:31]} 10. Nc3 {[%clk 0:02:43]}  Qd8 {[%clk 0:02:28]} 11. Be2 {[%clk 0:02:18]}  O-O {[%clk 0:02:24]} 12. O-O {[%clk 0:02:18]}  Bf6 {[%clk 0:02:22]} 13. Be3 {[%clk 0:02:17]}  a6 {[%clk 0:01:56]} 14. Bf3 {[%clk 0:01:59]}  Nc6 {[%clk 0:01:48]} 15. Bxc6 {[%clk 0:01:45]}  bxc6 {[%clk 0:01:48]} 16. Ne4 {[%clk 0:01:45]}  Be7 {[%clk 0:01:42]} 17. Qc2 {[%clk 0:01:37]}  Rb8 {[%clk 0:01:39]} 18. Rfd1 {[%clk 0:01:08]}  Qd5 {[%clk 0:01:32]} 19. Rac1 {[%clk 0:00:53]}  Qb3 {[%clk 0:01:29]} 20. Qxb3 {[%clk 0:00:44]}  Rxb3 {[%clk 0:01:30]} 21. Rd2 {[%clk 0:00:45]}  Bd7 {[%clk 0:01:25]} 22. Bg5 {[%clk 0:00:11]}  Bxg5 {[%clk 0:00:55]} 23. Nxg5 {[%clk 0:00:12]}  Rfb8 {[%clk 0:00:53]} 24. Rcc2 {[%clk 0:00:12]}  h6 {[%clk 0:00:36]} 25. Ne4 {[%clk 0:00:12]}  Kf8 {[%clk 0:00:37]} 26. Nc5 {[%clk 0:00:10]}  Ke7 {[%clk 0:00:36]} 27. Nxb3 {[%clk 0:00:10]}  Rxb3 {[%clk 0:00:37]} 28. Rc3 {[%clk 0:00:10]}  Rxc3 {[%clk 0:00:36]} 29. bxc3 {[%clk 0:00:10]}  Kd6 {[%clk 0:00:36]} 30. Rb2 {[%clk 0:00:04]}  Bc8 {[%clk 0:00:36]} 31. Kf1 {[%clk 0:00:04]}  Kc7 {[%clk 0:00:37]} 32. Ke2 {[%clk 0:00:05]}  Bb7 {[%clk 0:00:37]} 33. Ke3 {[%clk 0:00:05]}  a5 {[%clk 0:00:38]} 34. g3 {[%clk 0:00:05]}  Ba6 {[%clk 0:00:38]} 35. h4 {[%clk 0:00:04]}  Bc4 {[%clk 0:00:39]} 36. Rb1 {[%clk 0:00:04]}  a4 {[%clk 0:00:39]} 37. Rb4 {[%clk 0:00:04]}  Bb3 {[%clk 0:00:39]} 38. c4 {[%clk 0:00:05]}  e5 {[%clk 0:00:35]} 39. dxe5 {[%clk 0:00:04]}  c5 {[%clk 0:00:36]} 40. Rb5 {[%clk 0:00:05]}  Kc6 {[%clk 0:00:36]} 41. Ra5 {[%clk 0:00:03]}  Bxc4 {[%clk 0:00:32]} 42. Rxa4 {[%clk 0:00:03]}  Kb5 {[%clk 0:00:33]} 43. Ra7 {[%clk 0:00:02]}  Bd5 {[%clk 0:00:33]} 44. Rd7 {[%clk 0:00:02]}  Be6 {[%clk 0:00:33]} 45. Rd6 {[%clk 0:00:02]}  c4 {[%clk 0:00:33]} 46. Kd4 {[%clk 0:00:02]}  Bf5 {[%clk 0:00:21]} 47. Kc3 {[%clk 0:00:03]}  g6 {[%clk 0:00:19]} 48. f3 {[%clk 0:00:03]}  Be6 {[%clk 0:00:19]} 49. g4 {[%clk 0:00:03]}  h5 {[%clk 0:00:18]} 50. gxh5 {[%clk 0:00:03]}  gxh5 {[%clk 0:00:19]} 51. f4 {[%clk 0:00:04]}  Bf5 {[%clk 0:00:19]} 52. Rf6 {[%clk 0:00:04]}  Be6 {[%clk 0:00:19]} 53. f5 {[%clk 0:00:05]}  Bd5 {[%clk 0:00:19]} 54. e6 {[%clk 0:00:06]}  fxe6 {[%clk 0:00:19]} 55. fxe6 {[%clk 0:00:07]}  Bc6 {[%clk 0:00:20]} 56. e7 {[%clk 0:00:07]}  Be8 {[%clk 0:00:21]} 57. Rf8 {[%clk 0:00:07]}  Bd7 {[%clk 0:00:22]} 58. Rd8 {[%clk 0:00:08]}  Be8 {[%clk 0:00:23]} 59. Rxe8 {[%clk 0:00:08]} 1-0


[Site "https://www.chess.com"]